Cogmind - Beta 10.2 @@@ ROGUE MODE // 2021.11.14 @ 20:35:08 Player: Marco Result: Destroyed by S-27 Virus with Autogun Performance ------------- Evolutions (3) 1500 Regions Visited (8) 1600 Robots Destroyed (38) 190 Value Destroyed (775) 775 Prototype IDs (5) 100 Alien Tech Used (0) 0 Bonus (0) 0 TOTAL SCORE: 4165 Bonus ------- None Cogmind --------- Core Integrity 0/700 Matter 20/300 Energy 170/170 System Corruption 0% Temperature Cool (0) Movement Core (250) Ox4 Location -7/Lower Caves Parts ------- > --- POWER (1) -------- Makeshift Power Source > --- PROPULSION (3) --- (None) > --- UTILITY (6) ------ (None) > --- WEAPON (3) ------- Makeshift Hammer Makeshift Hammer Makeshift Hammer > --- INVENTORY (4) ---- Gravmag System Weight Redist. System Particle Gun Beamcaster Peak State ------------ > --- POWER ------------ Micro Fission Core > --- PROPULSION ------- Armored Treads Armored Treads Armored Treads > --- UTILITY ---------- Improved Cooling System Large Storage Unit Advanced Targeting Computer Energy Filter Hardened Medium Armor Plating Improved Light Armor Plating > --- WEAPON ----------- Precision Shock Rifle Precision Shock Rifle Precision Shock Rifle > --- INVENTORY -------- Light Deuterium Engine Enhanced Nuclear Core Gravmag System Antigrav System Improved Target Analyzer Weapon Cycler Medium Reactive Plating Remote Shield Advanced Assault Cannon Spear [Rating: 52] Favorites ----------- Power Light Ion Engine Engine Light Ion Engine Power Core Micro Fission Core Propulsion Aluminum Leg Treads Armored Treads Leg Aluminum Leg Utility Large Storage Unit Device Energy Filter Storage Large Storage Unit Processor Advanced Targeting Computer Protection Improved Light Armor Plating Weapon Light Assault Rifle Energy Gun Precision Shock Rifle Energy Cannon Particle Cannon Ballistic Gun Light Assault Rifle Launcher Grenade Launcher Impact Weapon Makeshift Hammer Build | -11 -10 -9 -9 -8 -7 -7 -7 -7 ------- Run | Scr Mat Mat Min Mat Fac Was Fac Low Slots Evolved 6 | . . 2 . 2 2 . . . Power . | . . . . . . . . . Propulsion 1 | . . 1 . . . . . . Utility 4 | . . . . 2 2 . . . Weapon 1 | . . 1 . . . . . . Parts Attached 77 | 7 5 14 3 17 23 . 4 4 Power 9 | 1 . 1 . 2 3 . 1 1 Engine 5 | 1 . 1 . 2 . . . 1 Core 4 | . . . . . 3 . 1 . Reactor . | . . . . . . . . . Propulsion 17 | 2 1 1 2 3 6 . 2 . Treads 10 | . . . 2 3 3 . 2 . Leg 7 | 2 1 1 . . 3 . . . Wheel . | . . . . . . . . . Hover . | . . . . . . . . . Flight . | . . . . . . . . . Utility 19 | 1 1 3 . 4 9 . 1 . Device 6 | . . . . 2 4 . . . Storage 6 | 1 1 2 . . 1 . 1 . Processor 1 | . . . . . 1 . . . Hackware . | . . . . . . . . . Protection 6 | . . 1 . 2 3 . . . Artifact . | . . . . . . . . . Weapon 32 | 3 3 9 1 8 5 . . 3 Energy Gun 11 | 2 1 1 . 3 4 . . . Energy Cannon 6 | . . 6 . . . . . . Ballistic Gun 11 | 1 1 2 1 5 1 . . . Ballistic Cannon . | . . . . . . . . . Launcher 1 | . 1 . . . . . . . Special Weapon . | . . . . . . . . . Impact Weapon 3 | . . . . . . . . 3 Slashing Weapon . | . . . . . . . . . Piercing Weapon . | . . . . . . . . . Special Melee Weapon . | . . . . . . . . . Unidentified Prototypes 3 | . . . . 1 2 . . . Parts Lost 10 | . 3 . . 1 1 5 . . Power . | . . . . . . . . . Propulsion 3 | . 1 . . . . 2 . . Utility 2 | . . . . . . 2 . . Weapon 5 | . 2 . . 1 1 1 . . Highest Loss Streak 5 | . 3 . . 1 1 5 . . Average Slot Usage (%) 81 | . 81 94 91 82 95 60 5 7 Engine 7 | . 14 11 11 8 4 . . 2 Core 1 | . . . . . 2 4 1 . Treads 12 | . . . 15 21 13 12 3 . Leg 10 | . 26 33 9 . 9 . . . Device 7 | . . . . 8 18 9 . . Storage 10 | . 14 11 22 9 6 4 1 . Processor 1 | . . . . . 6 4 . . Protection 5 | . . 7 . 7 9 9 . . Energy Gun 5 | . 13 9 1 1 7 14 . . Energy Cannon 2 | . . 12 11 . . . . . Ballistic Gun 15 | . 12 9 20 24 13 . . . Naked Turns 215 | . . . . . . 59 111 45 Heaviest Build 52 | 12 24 36 29 52 49 49 16 13 Greatest Support 66 | 20 20 30 40 66 66 60 40 3 Greatest Overweight (x) 4 | 3 2 1 . 1 1 2 . 4 Average Overweight (x) . | . 1 . . . . . . . Largest Inventory Capacity 12 | 6 12 10 10 10 10 10 8 4 Average Capacity 9 | 5 9 10 10 10 9 7 4 4 Most Carried 10 | 6 7 5 5 10 10 10 6 4 Average Carried 5 | 4 5 3 4 5 8 7 4 4 Final Capacity 10 | 6 10 10 10 10 10 4 4 4 Final Carried 9 | 4 5 4 5 9 9 4 4 4 Class Distribution -------------------- 36% | Tank 35% | Gunner 27% | Mutant Dominant Class ---------------- Mutant | -10/Materials Tank | -9/Materials Gunner | -9/Mines Tank | -8/Materials Gunner | -7/Factory Tank | -7/Waste Mutant | -7/Factory Mutant | -7/Lower Caves Resources | -11 -10 -9 -9 -8 -7 -7 -7 -7 ----------- Run | Scr Mat Mat Min Mat Fac Was Fac Low Matter Collected 1068 | 214 86 162 102 331 113 . 60 . Remotely . | . . . . . . . . . Salvage Created 1008 | . 99 146 102 324 277 . 60 . Parts 85 | . 12 15 13 24 15 . 6 . Haulers Intercepted 1 | . . . . . . . 1 . Recyclers Shooed . | . . . . . . . . . Parts Field Recycled 7 | . . . . 1 6 . . . Retrieved Matter 127 | . . . . 5 122 . . . Parts Self-Destructed 3 | . . . . . . . . 3 Prevented . | . . . . . . . . . Kills | -11 -10 -9 -9 -8 -7 -7 -7 -7 ------- Run | Scr Mat Mat Min Mat Fac Was Fac Low Combat Hostiles Destroyed 28 | . 5 4 6 9 4 . . . Guns 22 | . 4 2 4 8 4 . . . Cannons 4 | . . 2 2 . . . . . AOE 2 | . 1 . . 1 . . . . Classes Destroyed 9 | . 3 2 . . 3 . 1 . Worker 3 | . . . . . 3 . . . Builder 4 | . 1 . 1 2 . . . . Tunneler 1 | . . 1 . . . . . . Hauler 1 | . . . . . . . 1 . Recycler 1 | . . . . . 1 . . . Swarmer 17 | . 3 2 6 3 3 . . . Grunt 6 | . 2 1 . 3 . . . . Sentry 4 | . . 1 . 3 . . . . Programmer 1 | . . . . . 1 . . . Best Kill Streak 7 | . 5 2 3 3 7 . 1 . Combat Bots Only 4 | . 4 2 3 3 3 . . . Max Kills in Single Turn 2 | . 1 1 1 2 2 . 1 . Gunslinging . | . . . . . . . . . Exploded 1 | . 1 . . 1 . . . . Melee . | . . . . . . . . . Uniques/NPCs Destroyed . | . . . . . . . . . Combat | -11 -10 -9 -9 -8 -7 -7 -7 -7 -------- Run | Scr Mat Mat Min Mat Fac Was Fac Low Damage Taken 3107 | . 389 457 166 645 418 326 363 343 Core 1001 | . 100 107 15 75 30 166 165 343 Absorbed by Shields . | . . . . . . . . . Core Remaining (%) 78 | 100 60 . 69 86 . . . . Volleys Fired 88 | . 18 15 11 26 10 8 . . Largest 3 | . 2 3 3 3 3 3 . . Hottest 181 | . 70 181 133 113 117 165 . . Shots Fired 222 | . 29 41 33 76 23 20 . . Gun 191 | . 26 24 22 76 23 20 . . Cannon 28 | . . 17 11 . . . . . Launcher 3 | . 3 . . . . . . . Special . | . . . . . . . . . Kinetic 132 | . 15 10 17 70 20 . . . Thermal 44 | . 3 22 11 6 2 . . . Explosive 3 | . 3 . . . . . . . Electromagnetic 43 | . 8 9 5 . 1 20 . . Robot Hit Streak 19 | . 8 13 5 10 8 19 . . Robot Miss Streak 5 | . 4 3 3 5 3 2 . . Penetration Max . | . . . . . . . . . Secondary Targets 4 | . 1 . . 2 1 . . . Max Gunslinging Chain 1 | . 1 . . 1 1 . . . Shots Hit Robots 142 | . 16 28 14 49 17 18 . . Core Hits 74 | . 11 8 9 23 14 3 6 . Critical Hits 1 | . 1 . . . . . . . Critical Kills . | . . . . . . . . . Critical Parts Destroyed 1 | . 1 . . . . . . . Melee Attacks . | . . . . . . . . . Impact . | . . . . . . . . . Slashing . | . . . . . . . . . Piercing . | . . . . . . . . . Sneak Attacks . | . . . . . . . . . Combat Hostiles . | . . . . . . . . . Follow-up Attacks . | . . . . . . . . . Damage Inflicted 2038 | . 379 292 147 860 307 20 33 . Guns 1356 | . 164 195 66 641 270 20 . . Cannons 144 | . . 63 81 . . . . . Explosions 408 | . 215 . . 193 . . . . Melee . | . . . . . . . . . Ramming 130 | . . 34 . 26 37 . 33 . Kinetic 1036 | . 82 86 33 591 244 . . . Thermal 546 | . 77 119 81 243 26 . . . Explosive 170 | . 170 . . . . . . . Electromagnetic 156 | . 50 53 33 . . 20 . . Impact . | . . . . . . . . . Slashing . | . . . . . . . . . Piercing . | . . . . . . . . . Highest Corruption 2 | . 2 . . . . . . . Average Corruption 1 | . 1 . . . . . . . Corruption Purged . | . . . . . . . . . Overload Shots . | . . . . . . . . . Overflow Damage 41 | . 5 . . 36 . . . . Projectiles . | . . . . . . . . . Explosions 41 | . 5 . . 36 . . . . Melee . | . . . . . . . . . Knockbacks 2 | . . . . 2 . . . . Impact 2 | . . . . 2 . . . . Kinetic . | . . . . . . . . . Secondary . | . . . . . . . . . Self-Inflicted Damage 100 | . 80 . . . 6 . 14 . Shots 3 | . 3 . . . . . . . Rammed 15 | . . . . 3 1 . 11 . Targets Rammed 22 | . . 4 . 3 4 . 11 . Kicked 7 | . . 4 . . 3 . . . Crushed . | . . . . . . . . . Highest Temperature 664 | . 47 664 295 139 51 140 . . Average Temperature 115 | . 20 270 116 31 16 74 . . Received Heat Transfer 444 | . 99 48 . 162 . 9 126 . Effects 15 | . . 15 . . . . . . Shutdowns 4 | . . 4 . . . . . . Interference 3 | . . 3 . . . . . . Matter Decay 2 | . . 2 . . . . . . Damage (minor) 2 | . . 2 . . . . . . Damage (major) 3 | . . 3 . . . . . . Damage (core) 1 | . . 1 . . . . . . Siege Activations . | . . . . . . . . . Robots Corrupted . | . . . . . . . . . Combat Hostiles . | . . . . . . . . . Parts Fried . | . . . . . . . . . Impact Corruptions . | . . . . . . . . . Robots Melted . | . . . . . . . . . Combat Hostiles . | . . . . . . . . . Parts Melted 1 | . . . 1 . . . . . Heat Transferred 807 | . 125 236 148 261 37 . . . Parts Sabotaged . | . . . . . . . . . Parts Stolen . | . . . . . . . . . Parts Stripped . | . . . . . . . . . Power Chain Reactions 1 | . 1 . . . . . . . Missiles Intercepted . | . . . . . . . . . Alert | -11 -10 -9 -9 -8 -7 -7 -7 -7 ------- Run | Scr Mat Mat Min Mat Fac Was Fac Low Peak Influence 224 | . 135 206 224 144 135 15 77 . Initial 79 | . . 56 79 9 40 . 10 . Average 70 | . 57 140 156 51 51 5 33 . Maximum Alert Level 1 | . . 1 1 . . . . . Low Security (%) 94 | 100 100 75 74 100 100 100 100 . Level 1 5 | . . 24 25 . . . . . Level 2 . | . . . . . . . . . Level 3 . | . . . . . . . . . Level 4 . | . . . . . . . . . Level 5 . | . . . . . . . . . High Security . | . . . . . . . . . Max Security . | . . . . . . . . . Squads Dispatched 6 | . 1 1 . 4 . . . . Investigation . | . . . . . . . . . Extermination . | . . . . . . . . . Reinforcement 6 | . 1 1 . 4 . . . . Assault . | . . . . . . . . . Garrison . | . . . . . . . . . Intercept . | . . . . . . . . . Construction Impeded 1 | . . . . 1 . . . . Haulers Reinforced . | . . . . . . . . . Stealth | -11 -10 -9 -9 -8 -7 -7 -7 -7 --------- Run | Scr Mat Mat Min Mat Fac Was Fac Low Distress Signals 2 | . . . . 2 . . . . Communications Jammed . | . . . . . . . . . Distress Signals . | . . . . . . . . . Times Spotted 66 | . 7 9 6 25 5 6 4 4 Peak Tracking Total 6 | . 4 4 3 3 4 6 3 3 Tactical Retreats 5 | . 2 . . 1 . . 1 1 Traps | -11 -10 -9 -9 -8 -7 -7 -7 -7 ------- Run | Scr Mat Mat Min Mat Fac Was Fac Low Traps Triggered 3 | . 2 . . . 1 . . . Indirectly . | . . . . . . . . . Trap Hack Attempts . | . . . . . . . . . Triggered . | . . . . . . . . . Disarmed . | . . . . . . . . . Reprogrammed . | . . . . . . . . . Reused . | . . . . . . . . . Traps Extracted . | . . . . . . . . . Installed . | . . . . . . . . . Triggered . | . . . . . . . . . Machines | -11 -10 -9 -9 -8 -7 -7 -7 -7 ---------- Run | Scr Mat Mat Min Mat Fac Was Fac Low Machines Disabled 1 | . . . . 1 . . . . Max in Single Turn 1 | . . . . 1 . . . . Machines Sabotaged . | . . . . . . . . . Garrisons Compromised . | . . . . . . . . . Overloaded Fab Kills . | . . . . . . . . . Fab Network Shutdowns . | . . . . . . . . . Hacking | -11 -10 -9 -9 -8 -7 -7 -7 -7 --------- Run | Scr Mat Mat Min Mat Fac Was Fac Low Machines Accessed 4 | . 1 . 1 . 1 . . 1 Terminals 1 | . 1 . . . . . . . Fabricators . | . . . . . . . . . Repair Stations 1 | . . . . . 1 . . . Recycling Units . | . . . . . . . . . Scanalyzers . | . . . . . . . . . Garrison Access . | . . . . . . . . . Total Hacks 7 | . 3 . 1 . 2 . . 1 Successful 7 | . 3 . 1 . 2 . . 1 Failed . | . . . . . . . . . Catastrophic . | . . . . . . . . . Database Lockouts . | . . . . . . . . . Manual . | . . . . . . . . . Terminals 3 | . 3 . . . . . . . Fabricators . | . . . . . . . . . Repair Stations 2 | . . . . . 2 . . . Recycling Units . | . . . . . . . . . Scanalyzers . | . . . . . . . . . Garrison Access . | . . . . . . . . . Terminal Hacks 5 | . 3 . 1 . . . . 1 Record 1 | . 1 . . . . . . . Prototype ID Bank 1 | . 1 . . . . . . . Open Door 2 | . . . 1 . . . . 1 Hauler Manifests 1 | . 1 . . . . . . . Fabricator Hacks . | . . . . . . . . . Repair Station Hacks 2 | . . . . . 2 . . . Scan Component 1 | . . . . . 1 . . . Repair 1 | . . . . . 1 . . . Recycling Unit Hacks . | . . . . . . . . . Scanalyzer . | . . . . . . . . . Garrison Access Hacks . | . . . . . . . . . Unauthorized Hacks . | . . . . . . . . . Terminals . | . . . . . . . . . Fabricators . | . . . . . . . . . Repair Stations . | . . . . . . . . . Recycling Units . | . . . . . . . . . Scanalyzers . | . . . . . . . . . Garrison Access . | . . . . . . . . . Data Cores Recovered . | . . . . . . . . . Used . | . . . . . . . . . Hacking Detections . | . . . . . . . . . Full Trace Events . | . . . . . . . . . Feedback Events . | . . . . . . . . . Feedback Blocked . | . . . . . . . . . Robot Schematics Acquired . | . . . . . . . . . Robots Built . | . . . . . . . . . Matter . | . . . . . . . . . Time . | . . . . . . . . . Total Robot Build Rating . | . . . . . . . . . Part Schematics Acquired . | . . . . . . . . . Parts Built . | . . . . . . . . . Matter . | . . . . . . . . . Time . | . . . . . . . . . Total Part Build Rating . | . . . . . . . . . Parts Repaired 1 | . . . . . 1 . . . Time 26 | . . . . . 26 . . . Parts Recycled . | . . . . . . . . . Recycled Matter . | . . . . . . . . . Retrieved Matter . | . . . . . . . . . Retrieved Components . | . . . . . . . . . Parts Scanalyzed . | . . . . . . . . . Part Schematics Acquired . | . . . . . . . . . Parts Damaged . | . . . . . . . . . Bothacking | -11 -10 -9 -9 -8 -7 -7 -7 -7 ------------ Run | Scr Mat Mat Min Mat Fac Was Fac Low Used RIF Installer . | . . . . . . . . . Robots Hacked . | . . . . . . . . . Non-combat . | . . . . . . . . . Combat . | . . . . . . . . . Robot Hacks Applied . | . . . . . . . . . Relay Couplers Released 3 | . . . . . 3 . . . Programmers 3 | . . . . . 3 . . . Robots Rewired . | . . . . . . . . . Allies Hacked . | . . . . . . . . . Hacks Repelled . | . . . . . . . . . Allies | -11 -10 -9 -9 -8 -7 -7 -7 -7 -------- Run | Scr Mat Mat Min Mat Fac Was Fac Low Total Allies 1 | . . . . . . 1 . . Largest Group 1 | . . . . . . 1 . . Highest-Rated Group 31 | . . . . . . 31 . . Highest-Rated Ally 31 | . . . . . . 31 . . Total Orders . | . . . . . . . . . Ally Attacks 10 | . . . . . . 10 . . Total Damage 187 | . . . . . . 187 . . Kills . | . . . . . . . . . Allies Corrupted . | . . . . . . . . . Allies Melted . | . . . . . . . . . Intel | -11 -10 -9 -9 -8 -7 -7 -7 -7 ------- Run | Scr Mat Mat Min Mat Fac Was Fac Low Robot Analysis Total . | . . . . . . . . . Derelict Logs Recovered 1 | . . . 1 . . . . . Drone Launches 16 | . . . . 16 . . . . Drone Recoveries . | . . . . . . . . . Exploration | -11 -10 -9 -9 -8 -7 -7 -7 -7 ------------- Run | Scr Mat Mat Min Mat Fac Was Fac Low Turns Passed 3032 | 73 343 274 405 770 801 155 146 65 Spaces Moved 1895 | 51 190 138 248 360 444 153 215 96 Core 439 | 30 . . . . . 113 200 96 Treads 819 | . . . 165 360 239 40 15 . Legs 637 | 21 190 138 83 . 205 . . . Wheels . | . . . . . . . . . Hover . | . . . . . . . . . Flight . | . . . . . . . . . Fastest Speed 50 | 50 120 120 120 145 120 50 50 50 Average Speed 129 | 114 150 127 146 162 151 83 57 61 Slowest Speed 250 | 200 180 150 160 180 170 210 160 250 Overloaded Moves . | . . . . . . . . . Propulsion Burnouts . | . . . . . . . . . Robots Hopped . | . . . . . . . . . Cave-ins Triggered . | . . . . . . . . . Exploration Rate (%) 32 | 5 51 16 42 70 11 72 9 13 Regions Visited 8 Branch Regions 2 Pre-discovered Areas . | . . . . . . . . . Known Exits Taken . | . . . . . . . . . Unknown Exits Taken 6 | 1 1 1 1 1 . . 1 . Scrap Searched . | . . . . . . . . . Spaces Dug . | . . . . . . . . . Terrain Destroyed 29 | . 25 . . 4 . . . . Melee . | . . . . . . . . . Projectile . | . . . . . . . . . AOE 29 | . 25 . . 4 . . . . Terrain Rammed . | . . . . . . . . . Walls Destroyed . | . . . . . . . . . Machines Disabled . | . . . . . . . . . Actions | -11 -10 -9 -9 -8 -7 -7 -7 -7 --------- Run | Scr Mat Mat Min Mat Fac Was Fac Low Total 2311 | 63 221 204 270 495 556 165 237 100 Wait 105 | . 2 16 3 55 29 . . . Move 1888 | 50 189 137 247 359 444 152 214 96 Hop . | . . . . . . . . . Pick Up 76 | 6 5 8 2 21 27 3 4 . Fast Attach 18 | 4 . 4 1 . 3 . 2 4 Attach 41 | 2 4 6 2 12 13 . 2 . Detach 1 | . 1 . . . . . . . Swap 18 | 1 1 4 . 5 7 . . . Drop 54 | . 1 10 4 14 19 2 4 . Fire 88 | . 18 15 11 26 10 8 . . Melee . | . . . . . . . . . Ram 11 | . . . . . . . 11 . Kick 8 | . . 4 . . 4 . . . Crush 3 | . . . . 3 . . . . Escape Stasis . | . . . . . . . . . Rewire . | . . . . . . . . . Trap . | . . . . . . . . . Miscellaneous . | . . . . . . . . . Route ------- -11/Scrapyard -10/Materials -9/Materials -9/Mines -8/Materials (discovered 2 exits: *Fac x2) -7/Factory -7/Waste -7/Factory -7/Lower Caves History --------- Turn | Location | Event 4 | -11/Scrapyard | Discovered new exit (range 15) 74 | -11/Scrapyard | Entered Materials 332 | -10/Materials | Build established: Mutant 350 | -10/Materials | Lost 3 parts (1n2w) 369 | -10/Materials | Discovered new exit (range 13) 417 | -10/Materials | Entered another Materials area 417 | -9/Materials | Evolved 2 slots: Propulsion x1, Weapon x1 672 | -9/Materials | Discovered new exit (range 6) 691 | -9/Materials | Entered Mines 871 | -9/Mines | Discovered new exit (range 9) 907 | -9/Mines | Found the Drone Emporium 921 | -9/Mines | Found Prototype Device 952 | -9/Mines | Learned 2 Materials zone layouts 969 | -9/Mines | Build established: Gunner 1096 | -9/Mines | Entered Materials 1096 | -8/Materials | Evolved 2 slots: Utility x2 1096 | -8/Materials | Identified Decoy Drone Bay 1461 | -8/Materials | Build established: Tank 1745 | -8/Materials | Discovered new exit (range 91) 1827 | -8/Materials | Discovered new exit (range 15) 1866 | -8/Materials | Entered Factory 1866 | -7/Factory | Evolved 2 slots: Utility x2 2536 | -7/Factory | Repaired Lrg. Storage Unit 2667 | -7/Factory | Sucked down chute 2667 | -7/Factory | Entered Waste 2668 | -7/Waste | Met a frightened Derelict 2696 | -7/Waste | Spotted C-40 Crusher 2721 | -7/Waste | Spotted C-40 Crusher 2743 | -7/Waste | Crushed by Compactor (1 part destroyed, 1 dropped) 2744 | -7/Waste | Spotted C-40 Crusher 2760 | -7/Waste | Crushed by Compactor (1 part destroyed, 1 dropped) 2760 | -7/Waste | Crushed by Compactor (1 part destroyed, 2 dropped) 2763 | -7/Waste | Crushed by Compactor (1 part destroyed, 2 dropped) 2763 | -7/Waste | Crushed by Compactor (1 part destroyed, 2 dropped) 2778 | -7/Waste | Spotted C-40 Crusher 2785 | -7/Waste | Spotted C-40 Crusher 2793 | -7/Waste | Spotted C-40 Crusher 2794 | -7/Waste | Lost 5 parts (2n2u1w) 2812 | -7/Waste | Discovered new exit (range 16) 2822 | -7/Waste | Entered Factory 2952 | -7/Factory | Discovered new exit (range 16) 2968 | -7/Factory | Core integrity fell below 50% 2968 | -7/Factory | Entered Lower Caves 2998 | -7/Lower Caves | Core integrity fell below 20% 3033 | -7/Lower Caves | Destroyed by S-27 Virus with Autogun Last Messages --------------- 02874_ Acquired Particle Gun. 02876_ K-01 Serf collects debris. 02877_ Acquired Weight Redist. System. 02880_ Acquired Particle Gun. 02880_ K-01 Serf collects debris. 02895_ Dropped Med. Storage Unit. 02896_ Dropped Lgt. Treads. 02897_ Dropped Enh. Nuclear Core. 02952_ EXIT=FOUND LOCATION=UNKNOWN GOAL=ESCAPE 02985_ C-30 ARC bursts open, deploying its payload. 02985_ S-27 Virus unfolds itself. 03009_ S-27 Virus destroyed. 03012_ Connecting with WAR.Sys... 03012_ Current location identified: Lower Caves >>Open Door Sealed Heavy Doors opened. 03013_ Acquired Mak. Power Source. 03016_ Acquired Mak. Hammer. Map ----- +----------------------------------------------------+ | | | | | | | | | | | | | | | | | | | | | | | | | | | ?????????????????????????????????????????????????? | | ?????????????????????????????????????????????????? | | ?????????????????????????????????????????????????? | | ?????????????????????????????????????????????????? | | ?????????????????????????????????????????????????? | | ?????????????????????????????????????????????????? | | ?????????????????????????????????????????????????? | | ?????????????????????????????????????????????????? | | ?????????????????????#######?????????????????????? | | ?????????????????????#!! / #?????????????????????? | | ?????????????????????#!! #?????????????????????? | | ?????????????????????#!! **#?????????????????????? | | ?????????????????????##! @##?????????????????????? | | ??????????????????????# #??????????????????????? | | ?????????????????????## #??????????????????????? | | ?????????????????????# #X###????????????????????? | | ?????????????????????#s#### ##???????????###?????? | | ????????????????????## ##?????????# ##????? | | ???????????????????## ##???????# #????? | | ???????????????????# #??????## #????? | | ???????????????????# ##?????# #?#### | | ???????????????????## ##????# ## | | ????????????????????# ## ##???# ?? | | ???????????????????# ###### ##??# #??? | | ??????????????????# ##????### ##?# #???? | | ??????????????????# ##?????### =% ### #???? | | ??????????????????####?????### #???? | | ???????????????????????????# #??? | | ???????????????????????????# ##?? | | ???????????????????????????## ##### ### | | ????????????????????????????##????#### " | | ?????????????????????????????????????## "%" | | ??????????????????????????????????????# " | | ??????????????????????????????????????# ### | | ?????????????????????????????????????## #?# | | ?????????????????????????????????????# ## ## | | ????????????????????????????????????## ### | +----------------------------------------------------+ Best States ------------- Heat Dissipation 61 Energy Generation 18 Energy Capacity 300 Matter Stores 300 Matter Capacity 400 Sight Range 16 Terrain Scan Density 10 Armor Coverage 375 Evasion (%) 50 Targeting Accuracy 8 Recoil Reduction 3 Energy Filtering 30 Particle Charging 15 Item Schematics ----------------- None Robot Schematics ------------------ None Fabricated ------------ Nothing Alien Tech Used ----------------- None Achievements -------------- Shopping List Challenges ------------ None Game ------ Seed CompactTiamatPod Manual? 0 Play Time 00:34:32 Cumulative 8.5 hours Start 2021.11.14 @ 17:09:11 End 2021.11.14 @ 20:35:08 Sessions 3 Manual Loads 0 Difficulty Rogue Special Mode None Game No. 19 Rogue 14 Adventurer 5 Explorer 0 Win Type - Total 0 Types 0/0/0/0/0/0/0/0/0 Lore% 14 Gallery% 18 Achievement% 12 Wizard Run 0 Options --------- ASCII 0 Keyboard 0 Movement Mouse Keybinds 1 Fullscreen 1 Font 24/Smallcaps Map View 76x50 Tactical HUD 1 Map Filters NONE Filters NONE Steam 1 RUN: 076677e8-4615-43fc-b9cd-d31cbf32d2c9